Cogmind - Beta 14 @@@ ROGUE MODE // 2024.09.03 @ 15:06:35 Player: star Result: Destroyed by YN-GBA(R) with Subdweller Laser Performance ------------- Evolutions (0) 0 Regions Visited (2) 400 Robots Destroyed (16) 80 Value Destroyed (504) 504 Prototype IDs (1) 20 Alien Tech Used (0) 0 Bonus (0) 0 TOTAL SCORE: 1004 Bonus ------- None Cogmind --------- Core Integrity 0/250 Matter 268/300 Energy 250/250 System Corruption 0% Temperature Cool (6) Movement Treading (160) Location -10/Subcaves Parts ------- > --- POWER (1) -------- Ion Engine > --- PROPULSION (2) --- Improved Treads Improved Treads > --- UTILITY (2) ------ Medium Storage Unit Weapon Shielding > --- WEAPON (2) ------- Advanced Beam Cannon Rocket Launcher > --- INVENTORY (10) --- Light Ion Engine Improved Treads Improved Treads Improved Heat Sink Medium Matter Pod (100) Medium Matter Pod (100) Weapon Shielding Advanced Beam Cannon Subdweller Beam Cannon Rocket Launcher Peak State ------------ > --- POWER ------------ Ion Engine > --- PROPULSION ------- Improved Treads Improved Treads > --- UTILITY ---------- Improved Heat Sink Medium Storage Unit > --- WEAPON ----------- Advanced Beam Cannon Advanced Beam Cannon > --- INVENTORY -------- EM Pulse Gun Advanced Beam Cannon Advanced Beam Cannon Rocket Launcher Rocket Launcher [Rating: 16] Favorites ----------- Power Ion Engine Engine Ion Engine Propulsion Improved Treads Treads Improved Treads Wheel Wheel Utility Medium Storage Unit Device Improved Heat Sink Storage Medium Storage Unit Protection Weapon Shielding Weapon Advanced Beam Cannon Energy Gun EM Pulse Gun Energy Cannon Advanced Beam Cannon Ballistic Gun Light Assault Rifle Launcher Rocket Launcher Build | -11 -10 -10 ------- Run | Yrd Mat Sub Slots Evolved . | . . . Power . | . . . Propulsion . | . . . Utility . | . . . Weapon . | . . . Parts Attached 17 | 5 9 3 Power 3 | 1 2 . Engine 3 | 1 2 . Core . | . . . Reactor . | . . . Propulsion 4 | 2 2 . Treads 2 | . 2 . Leg . | . . . Wheel 2 | 2 . . Hover . | . . . Flight . | . . . Utility 3 | . 2 1 Device 1 | . 1 . Storage 1 | . 1 . Processor . | . . . Hackware . | . . . Protection 1 | . . 1 Artifact . | . . . Weapon 7 | 2 3 2 Energy Gun 1 | 1 . . Energy Cannon 4 | . 3 1 Ballistic Gun 1 | 1 . . Ballistic Cannon . | . . . Launcher 1 | . . 1 Special Weapon . | . . . Impact Weapon . | . . . Slashing Weapon . | . . . Piercing Weapon . | . . . Special Melee Weapon . | . . . Unidentified Prototypes 1 | . 1 . Parts Lost 4 | . 3 1 Power . | . . . Propulsion 2 | . 2 . Utility . | . . . Weapon 2 | . 1 1 Highest Loss Streak 2 | . 2 1 To Critical Strikes . | . . . Average Slot Usage (%) 93 | . 91 100 Engine 14 | . 14 14 Treads 23 | . 22 28 Wheel 1 | . 1 . Device 9 | . 12 . Storage 12 | . 11 14 Protection 3 | . . 13 Energy Cannon 26 | . 26 27 Peak Build Rating 16 | 5 16 16 Average Rating 13 | 3 14 14 On Entrance 7 | . 5 16 Naked Turns . | . . . Heaviest Build 24 | 8 24 24 Greatest Support 46 | 20 46 46 Greatest Overweight (x) 7 | 2 7 . Average Overweight (x) . | . . . Largest Inventory Capacity 10 | 5 10 10 Average Capacity 9 | 5 9 10 Most Carried 10 | . 10 10 Average Carried 8 | . 8 9 Final Capacity 10 | 5 10 10 Final Carried 10 | . 10 10 Class Distribution -------------------- 100% | Mutant Dominant Class ---------------- Mutant | -10/Materials Mutant | -10/Subcaves Resources | -11 -10 -10 ----------- Run | Yrd Mat Sub Matter Collected 547 | 245 282 20 Remotely . | . . . Salvage Created 659 | . 482 177 Parts 25 | . 16 9 Haulers Intercepted 1 | . 1 . Recyclers Shooed . | . . . Parts Field Recycled . | . . . Retrieved Matter . | . . . Parts Self-Destructed 12 | . . 12 Prevented . | . . . Kills | -11 -10 -10 ------- Run | Yrd Mat Sub Combat Hostiles Destroyed 14 | . 10 4 Guns 1 | . 1 . Cannons 10 | . 7 3 AOE 3 | . 2 1 Classes Destroyed 6 | . 4 2 Hauler 1 | . 1 . Operator 1 | . 1 . Swarmer 3 | . 3 . Grunt 8 | . 7 1 Sentry 1 | . . 1 Subdweller 2 | . . 2 Best Kill Streak 3 | . 3 2 Combat Bots Only 3 | . 3 2 Max Kills in Single Turn 1 | . 1 1 Gunslinging . | . . . Exploded 1 | . 1 1 Melee . | . . . Uniques/NPCs Destroyed . | . . . Combat | -11 -10 -10 -------- Run | Yrd Mat Sub Hostile Shots Fired 73 | . 56 17 Missed 22 | . 18 4 Damage Taken 829 | . 552 277 Core 257 | . 136 121 Absorbed by Shields . | . . . Redirected to Shielding 14 | . . 14 Core Remaining (%) 100 | 100 . . Volleys Fired 57 | . 46 11 Largest 2 | . 2 2 Hottest 136 | . 136 136 Shots Fired 104 | . 82 22 Gun 10 | . 10 . Cannon 92 | . 72 20 Launcher 2 | . . 2 Special . | . . . Kinetic 5 | . 5 . Thermal 92 | . 72 20 Explosive 2 | . . 2 Electromagnetic 5 | . 5 . Robot Hit Streak 10 | . 10 3 Robot Miss Streak 4 | . 3 4 Penetration Max . | . . . Secondary Targets . | . . . Shots Hit Robots 55 | . 44 11 Core Hits 22 | . 17 5 Critical Kills . | . . . Critical Parts Destroyed . | . . . Critical Strikes . | . . . Melee Attacks . | . . . Impact . | . . . Slashing . | . . . Piercing . | . . . Sneak Attacks . | . . . Combat Hostiles . | . . . Follow-up Attacks . | . . . Damage Inflicted 1273 | . 901 372 Guns 51 | . 51 . Cannons 964 | . 759 205 Explosions 249 | . 82 167 Melee . | . . . Ramming 9 | . 9 . Kinetic 6 | . 6 . Thermal 1046 | . 841 205 Explosive 167 | . . 167 Electromagnetic 45 | . 45 . Impact . | . . . Slashing . | . . . Piercing . | . . . Highest Corruption . | . . . Average Corruption . | . . . Corruption Purged . | . . . Corruption Blocked . | . . . Overload Shots . | . . . Overflow Damage 16 | . 16 . Projectiles 11 | . 11 . Explosions 5 | . 5 . Melee . | . . . Knockbacks . | . . . Impact . | . . . Kinetic . | . . . Secondary . | . . . Self-Inflicted Damage 77 | . 27 50 Shots 3 | . 1 2 Rammed 2 | . 2 . Targets Rammed 2 | . 2 . Kicked . | . . . Crushed . | . . . Highest Temperature 451 | . 451 102 Average Temperature 107 | . 118 38 Received Heat Transfer 399 | . 354 45 Effects 7 | . 7 . Energy Bleed 3 | . 3 . Interference 2 | . 2 . Short Circuit 1 | . 1 . Damage (minor) 1 | . 1 . Siege Activations . | . . . Robots Corrupted . | . . . Combat Hostiles . | . . . Parts Fried . | . . . Impact Corruptions . | . . . Robots Melted . | . . . Combat Hostiles . | . . . Parts Melted 2 | . 2 . Heat Transferred 1839 | . 1469 370 Parts Sabotaged . | . . . Parts Stolen . | . . . Parts Stripped . | . . . Power Chain Reactions 2 | . 2 . Alert | -11 -10 -10 ------- Run | Yrd Mat Sub Peak Influence 231 | . 231 . Initial . | . . . Average 85 | . 91 . Maximum Alert Level 1 | . 1 . Low Security (%) 80 | 100 79 . Level 1 19 | . 20 . Level 2 . | . . . Level 3 . | . . . Level 4 . | . . . Level 5 . | . . . High Security . | . . . Max Security . | . . . Squads Dispatched 2 | . 2 . Investigation 1 | . 1 . Extermination . | . . . Reinforcement 1 | . 1 . Assault . | . . . Garrison . | . . . Intercept . | . . . Searches Triggered . | . . . Construction Impeded . | . . . Haulers Reinforced . | . . . Active Scanning Responses . | . . . Cargo Convoy Interrupts . | . . . Stealth | -11 -10 -10 --------- Run | Yrd Mat Sub Distress Signals 2 | . 2 . Communications Jammed . | . . . Distress Signals . | . . . Times Spotted 31 | . 26 5 Peak Tracking Total 7 | . 7 2 Tactical Retreats 3 | . 3 . Traps | -11 -10 -10 ------- Run | Yrd Mat Sub Traps Triggered 1 | . 1 . Indirectly . | . . . Trap Hack Attempts . | . . . Triggered . | . . . Disarmed . | . . . Reprogrammed . | . . . Reused . | . . . Traps Extracted . | . . . Installed . | . . . Triggered . | . . . Machines | -11 -10 -10 ---------- Run | Yrd Mat Sub Machines Disabled 2 | . 2 . Max in Single Turn 1 | . 1 . Machines Repaired . | . . . Machines Dismantled . | . . . Machines Sabotaged . | . . . Overloaded Fab Kills . | . . . Hacking | -11 -10 -10 --------- Run | Yrd Mat Sub Machines Accessed 1 | . . 1 Terminals . | . . . Fabricators . | . . . Repair Stations . | . . . Recycling Units . | . . . Scanalyzers . | . . . Garrison Access . | . . . Total Hacks 4 | . . 4 Successful 4 | . . 4 Failed . | . . . Catastrophic . | . . . Database Lockouts . | . . . Manual . | . . . Terminals . | . . . Fabricators . | . . . Repair Stations . | . . . Recycling Units . | . . . Scanalyzers . | . . . Garrison Access . | . . . Terminal Hacks 4 | . . 4 Record 4 | . . 4 Fabricator Hacks . | . . . Repair Station Hacks . | . . . Recycling Unit Hacks . | . . . Scanalyzer . | . . . Garrison Access Hacks . | . . . Unauthorized Hacks . | . . . Terminals . | . . . Fabricators . | . . . Repair Stations . | . . . Recycling Units . | . . . Scanalyzers . | . . . Garrison Access . | . . . Data Cores Recovered . | . . . Used . | . . . Hacking Detections . | . . . Full Trace Events . | . . . Feedback Events . | . . . Feedback Blocked . | . . . Robot Schematics Acquired . | . . . Robots Built . | . . . Authchips . | . . . Time . | . . . Total Robot Build Rating . | . . . Part Schematics Acquired . | . . . Parts Built . | . . . Authchips . | . . . Time . | . . . Total Part Build Rating . | . . . Parts Repaired . | . . . Time . | . . . Parts Recycled . | . . . Recycled Matter . | . . . Retrieved Matter . | . . . Retrieved Components . | . . . Parts Scanalyzed . | . . . Part Schematics Acquired . | . . . Parts Damaged . | . . . Bothacking | -11 -10 -10 ------------ Run | Yrd Mat Sub Used RIF Installer . | . . . Robots Hacked . | . . . Non-combat . | . . . Combat . | . . . Robot Hacks Applied . | . . . Relay Couplers Released . | . . . Fabnet Peak Effective % . | . . . Robots Rewired . | . . . Allies Hacked . | . . . Hacks Repelled . | . . . Allies | -11 -10 -10 -------- Run | Yrd Mat Sub Total Allies . | . . . Largest Group . | . . . Highest-Rated Group . | . . . Highest-Rated Ally . | . . . Total Orders . | . . . Ally Attacks . | . . . Total Damage . | . . . Kills . | . . . Allies Corrupted . | . . . Allies Melted . | . . . Intel | -11 -10 -10 ------- Run | Yrd Mat Sub Robot Analysis Total . | . . . Derelict Logs Recovered . | . . . Drone Launches . | . . . Drone Recoveries . | . . . Exploration | -11 -10 -10 ------------- Run | Yrd Mat Sub Turns Passed 1812 | 86 1325 401 Spaces Moved 939 | 68 648 223 Core 74 | 22 52 . Treads 756 | . 533 223 Legs . | . . . Wheels 109 | 46 63 . Hover . | . . . Flight . | . . . Fastest Speed 50 | 50 80 160 Average Speed 157 | 94 162 160 Slowest Speed 400 | 150 400 160 Overloaded Moves . | . . . Propulsion Burnouts . | . . . Robots Hopped . | . . . Cave-ins Triggered . | . . . Exploration Rate (%) 35 | 4 84 19 Regions Visited 2 Branch Regions 1 Pre-discovered Areas 1 | . . 1 Known Exits Taken . | . . . Unknown Exits Taken 2 | 1 1 . Scrap Searched 2 | . . 2 Spaces Dug 4 | . 4 . Terrain Destroyed 19 | . 12 7 Melee . | . . . Projectile 8 | . 8 . AOE 11 | . 4 7 Terrain Rammed . | . . . Walls Destroyed . | . . . Machines Disabled . | . . . Actions | -11 -10 -10 --------- Run | Yrd Mat Sub Total 1164 | 86 833 245 Wait 135 | 14 114 7 Move 937 | 67 647 223 Hop . | . . . Pick Up 13 | . 12 1 Fast Attach 10 | 5 5 . Attach 2 | . 1 1 Detach . | . . . Swap 5 | . 3 2 Drop 3 | . 3 . Fire 57 | . 46 11 Melee . | . . . Ram . | . . . Kick . | . . . Crush 2 | . 2 . Escape Stasis . | . . . Rewire . | . . . Trap . | . . . Miscellaneous . | . . . Route ------- -11/Scrapyard -10/Materials (discovered 5 exits: [*Mat x3] / [*Min] / *Sub) -10/Subcaves (discovered 1 exit: [*Mat]) History --------- Turn | Location | Event 22 | -11/Scrapyard | Discovered new exit (range 16) 87 | -11/Scrapyard | Entered Materials 234 | -10/Materials | Discovered new exit (range 15) 312 | -10/Materials | Build established: Mutant 445 | -10/Materials | Discovered new exit (range 7) 725 | -10/Materials | Discovered new exit (range 16) 1221 | -10/Materials | Discovered new exit (range 11) 1240 | -10/Materials | Core integrity fell below 50% 1397 | -10/Materials | Discovered new exit (range 9) 1412 | -10/Materials | Entered Subcaves 1536 | -10/Subcaves | Visited Clippyterm 1541 | -10/Subcaves | Learned location of Extension (-6) 1621 | -10/Subcaves | Disturbed a concealed Subdweller 1633 | -10/Subcaves | Core integrity fell below 20% 1744 | -10/Subcaves | Discovered new exit (range 15) 1813 | -10/Subcaves | Destroyed by YN-GBA(R) with Subdweller Laser Last Messages --------------- 01614_ Searching scrap... 01614_ Found Riot Gun. 01614_ Found Mak. Sword. 01614_ Found 48 Matter. 01615_ Subatomizers dissect the Riot Gun. 01616_ Searching scrap... 01616_ Found Sub. Beam Cannon. 01616_ Found Ripper. 01616_ Found 60 Matter. 01621_ 8O-Z9R(R) angrily emerges from the Twisted Machinery. 01626_ Subatomizers dissect the Riot Gun. 01628_ 8O-Z9R(R) affixes Scrap Shield Fragment to Scrap Shield. 01630_ Adv. Beam Cannon destroyed. 01633_ 8O-Z9R(R) destroyed. 01638_ Acquired 10 matter. 01640_ Subatomizers dissect the Riot Gun. 01647_ Acquired Sub. Beam Cannon. 01653_ Subatomizers dissect the Riot Gun. 01744_ EXIT=FOUND 01811_ C8-YMF(R) destroyed. Map ----- +----------------------------------------------------+ | ## ###???#???????#######??????????????????????? | | ## ##???? ##???????????????????????????????????? | | ?# ##???? #???????????????????????????????????? | | ## ##### #???????????????????????????????????? | | # #???????????????????????????????????? | | # #???????????????????????????????????? | | # #???????????????????????????????????? | | #???????????????????????????????????? | | # ## #???????????????????????????????????? | | ######## #???????????????????????????????????? | | # ###???? #???????????????????????????????????? | | ##????#???????????????????????????????????? | | #????????????????????????????????????????? | | ## #???????????????????????????????????????? | | #?# #???????????????????????????????????????? | | #??####??????????????????#?????#??????????????? | | #??????????????####?????# ## ? ????##?????????? | | #??????????????# ##????# ????" #?????????? | | ##??????????????# ###??# ???? ""??????????? | | #???????????????# #### " #??? "???????????? | | #???????????##### #"" ##? #????????????? | | ##???????????# ## " ""# #????????????? | | ##????????????# R #????????????? | | ##???????????## &% #????????????? | | #???????????# !& #????????????? | | #??????????## @ ###????????????? | | ##???????### # #????????????? | | ##?###### ##??? #???????????? | | ### ### #????####???????????? | | ## ###?# ####???????????????????? | | ## ######??# ##??????????????????????? | | ### #######??????# #???????????????????????? | | #?####???????????# ##???????????????????????? | | #???????????????# #?????????????????????????? | | ??????????????###??????????????????????????? | | ??????????????????????????????????????????? | | ?????????????????????????????????????????? | | ????????????????????????????????????????? | | ## #???????????????????????????????????????? | | ###?##???????????????????????????????????????? | | ????????????????????????????????????????????? | | #????????????????????????????????????????????? | | # ????????????????????????????????????????????? | | ? #????????????????????????????????????????????? | | ? #????????????????????????????????????????????? | | ?# ?????????????????????????????????????????????? | | ?????????????????????????????????????????????????? | | ?????????????????????????????????????????????????? | | ?????????????????????????????????????????????????? | | ?????????????????????????????????????????????????? | +----------------------------------------------------+ Best States ------------- Heat Dissipation 39 Energy Generation 10 Energy Capacity 250 Matter Stores 300 Matter Capacity 300 Sight Range 16 Terrain Scan Density 10 Weapon Shielding 33 Evasion (%) 44 Recoil Reduction 2 Item Schematics ----------------- None Robot Schematics ------------------ None Fabricated ------------ Nothing Alien Tech Used ----------------- None Achievements -------------- None Challenges ------------ None Game ------ Seed ChargeHelicalBank Manual? 0 Play Time 00:11:31 Cumulative 69.0 hours Start 2024.09.03 @ 14:57:05 End 2024.09.03 @ 15:06:35 Sessions 1 Manual Loads 0 Difficulty Rogue Special Mode None Game No. 125 Rogue 125 Adventurer 0 Explorer 0 Win Type - Total 0 Types 0/0/0/0/0/0/0/0/0 Lore% 32 Gallery% 45 Achievement% 37 Wizard Run 0 Options --------- Layout 0 ASCII 0 Keyboard 0 Movement Numpad Keybinds 0 Fullscreen 2 Font 18/SmallcapsGlow Map View 76x50 Zoom Use 0% Tactical HUD 1 Map Filters NONE Filters NONE Steam 1 RUN: a7823bf4-d70b-4478-8d97-9c55a901edd3